bitfinex-derivatives/quotes_SOLF0:USTF0_20260311
["timestamp","ask_amount","ask_price","bid_price","bid_amount"]
[1773252874946,10.25,87.789,87.74,6.07707225]
[1773252875241,14.36,87.859,87.76,6.07707225]
[1773252875446,33.45226669,87.858,87.768,10.252]
[1773252876037,10.246,87.819,87.768,10.252]
[1773252879142,10.245,87.83,87.76,6.07707225]
[1773252879348,14.36,87.856,87.78,6.07707225]
[1773252880249,24.45041059,87.858,87.78,6.07707225]
[1773252880443,10.245,87.831,87.788,10.25]
[1773252880846,12.96826669,87.858,87.788,10.25]
[1773252882147,12.96826669,87.858,87.78,16.32807225]
[1773252882551,12.96826669,87.858,87.78,6.07707225]
[1773252882846,10.42470587,87.908,87.78,6.07707225]
[1773252882847,14.34,87.924,87.82,6.07707225]
[1773252883043,10.42470587,87.94,87.82,6.07707225]
[1773252883044,14.34,87.923,87.82,6.07707225]
[1773252883246,6.07707225,87.92,87.8,6.07707225]
[1773252883443,6.07707225,87.9,87.8,6.07707225]
[1773252884446,6.07707225,87.9,87.78,6.07707225]
[1773252885148,159.218,87.917,87.76,6.07707225]
[1773252885149,6.07707225,87.88,87.76,6.07707225]
[1773252885548,6.07707225,87.86,87.76,6.07707225]
[1773252885850,14.34,87.859,87.74,6.07707225]
[1773252886243,14.34,87.859,87.742,10.255]
[1773252886450,14.34,87.859,87.74,6.07707225]
[1773252887044,14.34,87.859,87.711,34.23]
[1773252887045,14.34,87.858,87.76,6.07707225]
[1773252887245,6.07707225,87.88,87.76,6.07707225]
[1773252887553,14.34,87.879,87.76,6.07707225]
[1773252888352,20.482,87.867,87.779,10.251]
[1773252888553,14.34,87.866,87.779,10.251]
[1773252888955,10.245,87.833,87.779,10.251]
[1773252889155,6.07707225,87.88,87.76,6.07707225]
[1773252889355,14.34,87.879,87.76,6.07707225]
[1773252889953,10.243,87.845,87.793,10.249]
[1773252890858,10.244,87.838,87.785,10.25]
[1773252891052,10.244,87.838,87.78,6.07707225]
[1773252891757,10.244,87.838,87.77,6.04805428]
[1773252892352,10.244,87.838,87.785,10.25]
[1773252894054,10.245,87.83,87.776,10.251]
[1773252894260,10.245,87.83,87.77,6.04805428]
[1773252894461,10.245,87.83,87.739,14.04272873]
[1773252894462,6.04805428,87.87,87.75,6.04805428]
[1773252895461,10.246,87.825,87.774,10.251]
[1773252895659,6.04805428,87.87,87.75,6.04805428]
[1773252895869,6.04805428,87.85,87.73,6.04805428]
[1773252896367,6.04805428,87.83,87.71,6.04805428]
[1773252897971,6.04805428,87.83,87.671,28.13517396]
[1773252897972,6.04805428,87.85,87.73,6.04805428]
[1773252898176,14.34,87.849,87.73,6.04805428]
[1773252898470,10.247,87.81,87.75,6.04805428]
[1773252899171,10.248,87.807,87.759,10.253]
[1773252899373,14.34,87.849,87.73,6.04805428]
[1773252900372,10.248,87.803,87.751,10.254]
[1773252900578,10.248,87.803,87.73,6.04805428]
[1773252900579,20.488,87.842,87.73,6.04805428]
[1773252901773,6.04805428,87.83,87.71,6.04805428]
[1773252901974,6.04805428,87.83,87.648,28.13517396]
[1773252901975,6.04805428,87.81,87.69,6.04805428]
[1773252902172,6.04805428,87.81,87.708,10.259]
[1773252902369,6.04805428,87.81,87.69,6.04805428]
[1773252902874,6.04805428,87.79,87.69,6.04805428]
[1773252903072,14.34,87.789,87.67,6.04805428]
[1773252903378,10.254,87.754,87.707,5.659]
[1773252905175,10.254,87.754,87.661,14.34]
[1773252905176,6.04805428,87.8,87.67,6.04805428]
[1773252905377,14.34,87.799,87.69,6.04805428]
[1773252905577,14.34,87.798,87.69,6.04805428]
[1773252905878,14.34,87.798,87.716,10.258]
[1773252906871,10.251,87.777,87.69,6.04805428]
[1773252907072,6.04805428,87.83,87.71,6.04805428]
[1773252907378,20.49,87.833,87.73,6.04805428]
[1773252907578,10.248,87.808,87.748,10.254]
[1773252907768,10.248,87.808,87.73,6.04805428]
[1773252908573,10.248,87.808,87.75,6.04805428]
[1773252908775,10.247,87.816,87.75,6.04805428]
[1773252908975,10.42470587,87.891,87.718,21.10556622]
[1773252908976,14.34,87.864,87.77,6.04805428]
[1773252909180,14.34,87.874,87.77,6.04805428]
[1773252909381,14.34,87.876,87.787,10.25]
[1773252910077,6.04805428,87.89,87.79,6.04805428]
[1773252910276,14.34,87.889,87.79,6.04805428]
[1773252910477,20.474,87.904,87.79,6.04805428]
[1773252910779,10.24,87.87,87.811,10.247]
[1773252910978,14.34,87.893,87.79,6.04805428]
[1773252911180,10.242,87.86,87.801,10.248]
[1773252911380,10.242,87.86,87.79,6.04805428]
[1773252911878,14.34,87.887,87.773,14.04272873]
[1773252912382,10.42470587,87.934,87.82,6.04805428]
[1773252912683,14.34,87.933,87.82,6.04805428]
[1773252912880,10.239,87.882,87.825,10.246]
[1773252913079,14.34,87.933,87.825,10.246]
[1773252913080,6.04805428,87.92,87.825,10.246]
[1773252913383,14.34,87.919,87.825,10.246]
[1773252913581,10.237,87.897,87.82,6.04805428]
[1773252914083,10.238,87.888,87.824,10.246]
[1773252914680,14.34,87.921,87.844,10.243]
[1773252914878,14.34,87.921,87.82,6.04805428]
[1773252915584,14.34,87.928,87.82,6.04805428]
[1773252916878,10.237,87.897,87.839,10.244]
[1773252918592,14.34,87.927,87.829,10.245]
[1773252918991,14.34,87.926,87.829,10.245]
[1773252919285,14.34,87.94,87.84,6.04805428]
[1773252919788,6.04805428,87.94,87.83,6.04805428]
[1773252919994,6.04805428,87.92,87.82,6.04805428]
[1773252920196,6.04805428,87.9,87.78,6.04805428]
[1773252920492,14.34,87.899,87.78,6.04805428]
[1773252920692,6.04805428,87.92,87.8,6.04805428]
[1773252920885,10.24,87.875,87.807,10.248]
[1773252921595,14.34,87.896,87.8,6.04805428]
[1773252922692,14.34,87.905,87.8,6.04805428]
[1773252923290,10.24,87.878,87.8,6.04805428]
[1773252923993,14.34,87.905,87.8,6.04805428]
[1773252924296,10.241,87.868,87.812,10.247]
[1773252924496,14.34,87.905,87.812,10.247]
[1773252924696,6.04805428,87.92,87.8,6.04805428]
[1773252924895,10.24,87.878,87.82,10.246]
[1773252925091,14.34,87.919,87.82,6.04805428]
[1773252925496,14.34,87.919,87.836,10.244]
[1773252925698,20.466,87.934,87.836,10.244]
[1773252925892,14.34,87.923,87.836,10.244]
[1773252926492,10.237,87.898,87.836,10.244]
[1773252926887,10.238,87.89,87.836,10.244]
[1773252927699,10.238,87.89,87.825,10.246]
[1773252927899,10.238,87.89,87.82,6.04805428]
[1773252928195,10.237,87.899,87.82,6.04805428]
[1773252928399,10.237,87.899,87.841,10.244]
[1773252928996,10.238,87.891,87.832,10.245]
[1773252929403,10.238,87.891,87.783,20.501]
[1773252929404,10.242,87.855,87.8,10.248]
[1773252929602,10.242,87.855,87.79,6.04805428]
[1773252929603,14.34,87.892,87.79,6.04805428]
[1773252930098,10.241,87.867,87.807,10.248]
[1773252930294,20.471,87.913,87.81,6.04805428]
[1773252930501,14.34,87.912,87.816,10.247]
[1773252931004,10.239,87.884,87.81,6.04805428]
[1773252931301,20.466,87.938,87.83,6.04805428]
[1773252931496,10.238,87.891,87.832,10.245]
[1773252933197,14.34,87.919,87.8,14.04272873]
[1773252933198,14.34,87.919,87.8,6.04805428]
[1773252933698,10.239,87.884,87.83,10.245]
[1773252933898,20.471,87.914,87.82,6.04805428]
[1773252934299,14.34,87.913,87.82,6.04805428]
[1773252934998,10.24,87.87,87.82,6.04805428]
[1773252935204,20.472,87.91,87.8,6.04805428]
[1773252935403,14.34,87.913,87.812,10.247]
[1773252935594,14.34,87.913,87.8,6.04805428]
[1773252936499,6.04805428,87.92,87.8,6.04805428]
[1773252936692,14.34,87.919,87.8,6.04805428]
[1773252937398,10.239,87.88,87.828,10.245]
[1773252937703,14.34,87.919,87.828,10.245]
[1773252938404,14.34,87.919,87.8,6.04805428]
[1773252939302,6.04805428,87.9,87.78,6.04805428]
[1773252939703,6.04805428,87.88,87.78,6.04805428]
[1773252939904,6.04805428,87.88,87.733,21.10556622]
[1773252939905,10.245,87.827,87.76,6.04805428]
[1773252940307,14.34,87.858,87.74,6.04805428]
[1773252941104,20.486,87.849,87.74,6.04805428]
[1773252941505,20.476,87.894,87.78,6.04805428]
[1773252941810,14.34,87.893,87.78,6.04805428]
[1773252942211,20.476,87.892,87.792,10.249]
[1773252942906,6.04805428,87.88,87.783,10.25]
[1773252943512,20.479,87.878,87.79,10.25]
[1773252946012,20.479,87.878,87.78,6.04805428]
[1773252946013,14.34,87.893,87.78,6.04805428]
[1773252946414,10.243,87.852,87.78,6.04805428]
[1773252947515,10.243,87.852,87.796,10.249]
[1773252948016,6.04805428,87.88,87.788,10.25]
[1773252948813,6.04805428,87.9,87.78,6.04805428]
[1773252949015,14.34,87.899,87.767,14.04272873]
[1773252949211,6.04805428,87.88,87.76,6.04805428]
[1773252949610,6.04805428,87.88,87.777,10.251]
[1773252949812,6.04805428,87.88,87.76,6.04805428]
[1773252950419,20.481,87.872,87.761,14.04272873]
[1773252950618,6.04805428,87.88,87.761,14.04272873]
[1773252950814,14.34,87.879,87.762,14.04272873]
[1773252951014,10.244,87.84,87.761,14.04272873]
[1773252951220,10.244,87.84,87.766,14.04272873]
[1773252951619,10.244,87.84,87.77,14.04272873]
[1773252952021,6.04908262,87.86,87.762,14.04272873]
[1773252952219,6.04908262,87.86,87.754,14.04272873]
[1773252952718,10.245,87.829,87.762,14.04272873]
[1773252953119,10.245,87.829,87.764,14.04272873]
[1773252953325,10.244,87.838,87.785,10.25]
[1773252953516,14.34,87.859,87.772,14.04272873]
[1773252953823,14.34,87.859,87.769,14.04272873]
[1773252954014,14.34,87.859,87.768,14.04272873]
[1773252954414,10.42470587,87.891,87.77,14.04272873]
[1773252954620,14.34,87.934,87.82,6.04908262]
[1773252954814,14.34,87.934,87.828,14.04272873]
[1773252955020,14.34,87.934,87.82,6.04908262]
[1773252955021,10.237,87.9,87.84,10.244]
[1773252955218,10.237,87.9,87.82,6.04908262]
[1773252955421,10.237,87.9,87.823,14.04272873]
[1773252955818,14.34,87.934,87.824,14.04272873]
[1773252956226,14.34,87.946,87.84,6.04908262]
[1773252956528,14.34,87.945,87.84,6.04908262]
[1773252957232,10.238,87.894,87.843,10.243]
[1773252958032,10.237,87.903,87.85,10.243]
[1773252958328,14.34,87.945,87.84,6.04908262]
[1773252959429,10.237,87.897,87.842,10.244]
[1773252960231,10.237,87.897,87.849,10.243]
[1773252960431,10.236,87.905,87.849,10.243]
[1773252960830,11.55138834,87.946,87.84,6.04908262]
[1773252961030,14.34,87.945,87.84,6.04908262]
[1773252961337,10.236,87.911,87.84,6.04908262]
[1773252961935,6.04908262,87.96,87.84,6.04908262]
[1773252962141,6.04908262,87.97,87.851,14.04272873]
[1773252962436,11.29022018,87.977,87.85,6.04908262]
[1773252962638,14.34,87.976,87.85,6.04908262]
[1773252962838,6.04908262,87.96,87.85,6.04908262]
[1773252963032,10.234,87.922,87.861,10.241]
[1773252963227,6.04908262,87.96,87.85,6.04908262]
[1773252963832,10.234,87.927,87.867,10.241]
[1773252965440,10.233,87.936,87.875,10.24]
[1773252966039,14.34,87.959,87.87,6.04908262]
[1773252966238,10.232,87.94,87.87,6.04908262]
[1773252966441,10.232,87.94,87.85,6.04908262]
[1773252967336,10.232,87.94,87.877,10.239]
[1773252967937,10.232,87.94,87.885,10.239]
[1773252969743,10.233,87.932,87.876,10.24]
[1773252970938,14.34,87.959,87.876,10.24]
[1773252971137,14.34,87.959,87.884,10.239]
[1773252971743,10.233,87.935,87.85,6.04908262]
[1773252972148,10.233,87.935,87.882,10.239]
[1773252974648,10.233,87.935,87.85,6.04908262]
[1773252974649,6.04908262,87.96,87.862,10.241]
[1773252974848,14.32,87.959,87.85,6.04908262]
[1773252975759,14.32,87.959,87.871,10.24]
[1773252976345,6.04908262,87.94,87.83,6.04908262]
[1773252976852,6.04908262,87.96,87.85,6.04908262]
[1773252977050,14.32,87.959,87.85,6.04908262]
[1773252977245,10.42470587,88.014,87.85,6.04908262]
[1773252977451,6.04908262,87.98,87.87,6.04908262]
[1773252977654,14.32,87.979,87.87,6.04908262]
[1773252977848,25.91706247,87.979,87.87,6.04908262]
[1773252978449,25.91706247,87.979,87.894,10.237]
[1773252979459,25.91706247,87.979,87.87,6.04908262]
[1773252980458,25.91706247,87.979,87.909,10.236]
[1773252980660,25.91706247,87.979,87.87,6.04908262]
[1773252982453,25.91706247,87.979,87.902,10.237]
[1773252983057,11.59706247,87.979,87.902,10.237]
[1773252983258,14.32,87.978,87.902,10.237]
[1773252983752,6.04908262,87.96,87.85,6.04908262]
[1773252984153,14.32,87.985,87.87,6.04908262]
[1773252984551,11.28817447,87.986,87.87,6.04908262]
[1773252984552,14.32,87.984,87.87,6.04908262]
[1773252984755,11.28817447,87.986,87.87,6.04908262]
[1773252984955,6.04908262,88.0,87.856,159.327]
[1773252984956,14.32,87.987,87.89,6.04908262]
[1773252985457,14.32,87.987,87.893,20.476]
[1773252985959,14.32,87.995,87.92,10.234]
[1773252986751,14.32,87.994,87.92,10.234]
[1773252987159,14.32,87.994,87.912,10.235]
[1773252987358,14.32,87.994,87.89,6.04908262]
[1773252988057,6.04908262,88.0,87.89,6.04908262]
[1773252988261,14.32,87.999,87.919,10.235]
[1773252989462,14.32,87.998,87.926,10.234]
[1773252989963,6.04908262,88.0,87.926,10.234]
[1773252990164,14.32,87.997,87.926,10.234]
[1773252991362,90.96,88.045,87.91,6.04908262]
[1773252991561,6.04908262,88.03,87.91,6.04908262]
[1773252991762,17.12490858,88.03,87.91,6.04908262]
[1773252991962,17.12490858,88.03,87.943,10.232]
[1773252992265,14.32,88.029,87.943,10.232]
[1773252992466,14.32,88.029,87.942,10.232]
[1773252993365,10.226,87.997,87.949,10.231]
[1773252994162,10.226,87.997,87.941,10.232]
[1773252994360,10.227,87.989,87.941,10.232]
[1773252994561,14.32,88.009,87.941,10.232]
[1773252995468,10.226,87.996,87.948,10.231]
[1773252996071,10.227,87.989,87.94,2.41200133]
[1773252996272,14.32,88.002,87.93,2.41200133]
[1773252996473,2.41200133,88.01,87.94,2.41200133]
[1773252996673,11.07582596,88.03,87.873,14.32]
[1773252996674,11.07582596,88.03,87.894,14.04272873]
[1773252996874,2.41200133,88.01,87.94,2.41200133]
[1773252997271,2.41200133,88.0,87.93,2.41200133]
[1773252997471,14.32,87.999,87.93,2.41200133]
[1773252997877,14.32,87.998,87.94,2.41200133]
[1773252998170,10.227,87.989,87.941,10.232]
[1773252998371,10.227,87.989,87.94,2.41200133]
[1773252998671,2.41200133,88.01,87.94,2.41200133]
[1773252998878,14.32,88.009,87.94,2.41200133]
[1773252999374,10.226,87.997,87.95,2.41200133]
[1773252999571,14.32,88.008,87.95,2.41200133]
[1773252999966,14.32,88.008,87.96,2.41200133]
[1773253000175,10.224,88.013,87.96,2.41200133]
[1773253000777,10.225,88.006,87.96,2.41200133]
[1773253000977,14.32,88.017,87.96,2.41200133]
[1773253001274,2.41200133,88.01,87.94,2.41200133]
[1773253002074,14.32,88.016,87.89,20.477]
[1773253002075,2.41200133,88.0,87.93,2.41200133]
[1773253002383,2.41200133,88.0,87.94,2.41200133]
[1773253002577,2.41200133,88.01,87.94,2.41200133]
[1773253002777,2.41200133,88.0,87.94,2.41200133]
[1773253002978,2.41200133,88.01,87.94,2.41200133]
[1773253003378,2.41200133,88.01,87.94,12.64400133]
[1773253003881,2.41200133,88.01,87.947,10.231]
[1773253004075,14.32,88.009,87.95,2.41200133]
[1773253004376,10.225,87.999,87.95,2.41200133]
[1773253005377,10.225,87.999,87.952,10.231]
[1773253006176,10.224,88.007,87.952,10.231]
[1773253006371,14.32,88.013,87.952,10.231]
[1773253007478,14.32,88.013,87.96,2.41200133]
[1773253008472,10.224,88.008,87.962,10.23]
[1773253009074,10.224,88.008,87.96,2.41200133]
[1773253009276,14.32,88.012,87.96,2.41200133]
[1773253009277,10.225,88.001,87.96,2.41200133]
[1773253009473,14.32,88.012,87.954,10.23]
[1773253009677,10.225,88.003,87.954,10.23]
[1773253011184,10.226,87.997,87.954,10.23]
[1773253011384,2.41200133,87.99,87.92,2.41200133]
[1773253011578,14.32,87.989,87.92,2.41288423]
[1773253011774,10.23,87.963,87.92,2.41288423]
[1773253012581,10.23,87.956,87.91,2.41288423]
[1773253013377,14.32,87.962,87.878,14.04272873]
[1773253013578,14.32,87.962,87.92,2.41288423]
[1773253014381,20.451,88.001,87.884,14.04272873]
[1773253014382,2.41288423,88.0,87.93,2.41288423]
[1773253014689,11.62589841,88.03,87.93,2.41288423]
[1773253014690,14.32,87.999,87.93,2.41288423]
[1773253014985,14.32,87.998,87.93,2.41288423]
[1773253015188,14.32,87.998,87.92,2.41288423]
[1773253015775,14.32,87.998,87.921,10.234]
[1773253015981,14.32,87.998,87.93,2.41288423]
[1773253016874,10.23,87.962,87.92,2.41288423]
[1773253017080,2.41288423,87.99,87.92,2.41288423]
[1773253017276,2.41288423,87.99,87.91,2.41288423]
[1773253017585,14.32,87.998,87.91,2.41288423]
[1773253017586,10.23,87.956,87.91,2.41288423]
[1773253017885,2.41288423,87.98,87.91,2.41288423]
[1773253018086,2.41288423,87.99,87.92,2.41288423]
[1773253018787,14.32,87.989,87.92,2.41288423]
[1773253019382,10.23,87.959,87.92,2.41288423]
[1773253020185,2.41288423,88.0,87.93,2.41288423]
[1773253020392,14.32,87.999,87.93,2.41288423]
[1773253020984,14.32,87.999,87.879,14.04272873]
[1773253020985,2.41288423,87.98,87.879,14.04272873]
[1773253021188,2.41288423,87.98,87.91,2.41288423]
[1773253021378,10.232,87.946,87.91,2.41288423]
[1773253021779,14.32,87.953,87.881,14.04272873]
[1773253022085,2.41288423,88.0,87.93,2.41288423]
[1773253022687,14.32,87.999,87.93,2.41288423]
[1773253022889,14.32,87.999,87.9,14.04272873]
[1773253022890,14.32,87.999,87.92,2.41288423]
[1773253023189,10.23,87.96,87.92,2.41288423]
[1773253023383,2.41288423,87.99,87.92,2.41288423]
[1773253023587,2.84146457,87.989,87.92,2.41288423]
[1773253023788,2.84146457,87.988,87.92,2.41288423]
[1773253023983,2.84146457,87.987,87.899,14.04272873]
[1773253024184,2.41288423,87.98,87.9,2.41288423]
[1773253024486,10.231,87.948,87.9,2.41288423]
[1773253024685,17.16146457,87.947,87.89,2.41288423]
[1773253024892,2.84146457,87.946,87.89,2.41288423]
[1773253025084,2.84146457,87.945,87.89,2.41288423]
[1773253025294,2.84146457,87.944,87.9,2.41288423]
[1773253025593,2.84146457,87.943,87.9,2.41288423]
[1773253025790,2.84146457,87.942,87.9,2.41288423]
[1773253025991,10.233,87.931,87.89,2.41288423]
[1773253026296,2.84146457,87.94,87.89,2.41288423]
[1773253026482,2.84146457,87.939,87.89,2.41288423]
[1773253026683,2.84146457,87.938,87.89,2.41288423]
[1773253026886,2.84146457,87.937,87.89,2.41288423]
[1773253027086,2.84146457,87.936,87.89,2.41288423]
[1773253027294,10.234,87.928,87.89,2.41288423]
[1773253027484,2.84146457,87.959,87.91,2.41288423]
[1773253027688,17.16146457,87.958,87.91,2.41288423]
[1773253027888,10.231,87.952,87.91,2.41288423]
[1773253028093,2.84146457,87.956,87.91,2.41288423]
[1773253028294,2.84146457,87.955,87.91,2.41288423]
[1773253028495,10.23,87.962,87.92,2.41288423]
[1773253028692,2.84146457,87.961,87.92,2.41288423]
[1773253028893,2.84146457,87.985,87.91,2.41288423]
[1773253029096,2.84146457,87.984,87.912,10.235]
[1773253029290,2.84146457,87.983,87.92,2.41288423]
[1773253029490,2.41288423,87.98,87.91,2.41288423]
[1773253029684,20.456,87.978,87.894,0.00072873]
[1773253029889,2.41288423,87.97,87.9,2.41288423]
[1773253030089,17.16146457,87.969,87.9,2.41288423]
[1773253030289,2.84146457,87.968,87.9,2.41288423]
[1773253030491,10.232,87.946,87.91,2.41288423]
[1773253030690,10.232,87.946,87.834,28.13517396]
[1773253030691,2.84146457,87.966,87.861,21.10556622]
[1773253030892,2.84146457,87.966,87.753,159.514]
[1773253030893,2.41288423,87.94,87.87,2.41288423]
[1773253031193,10.234,87.922,87.87,2.41288423]
[1773253031991,10.234,87.922,87.88,2.41288423]
[1773253033694,14.32,87.94,87.89,2.41288423]
[1773253033893,14.32,87.939,87.89,2.41288423]
[1773253034596,14.32,87.957,87.89,12.65088423]
[1773253034795,14.32,87.982,87.92,2.41288423]
[1773253035101,2.41288423,87.96,87.89,2.41288423]
[1773253035300,14.32,87.959,87.89,2.41288423]
[1773253035593,14.32,87.959,87.9,2.41288423]
[1773253035997,14.32,87.959,87.86,20.484]
[1773253036304,2.41288423,87.95,87.88,2.41288423]
[1773253036598,2.41288423,87.94,87.87,2.41288423]
[1773253036798,10.233,87.931,87.87,2.41288423]
[1773253036995,14.32,87.933,87.87,2.41288423]
[1773253037194,14.32,87.933,87.88,2.41288423]
[1773253037400,10.233,87.93,87.87,2.41288423]
[1773253037699,10.233,87.93,87.85,6.03800135]
[1773253037898,10.233,87.93,87.883,10.239]
[1773253038095,10.233,87.93,87.85,6.03800135]
[1773253038296,14.32,87.947,87.852,20.485]
[1773253038698,14.32,87.947,87.887,10.238]
[1773253039195,10.233,87.931,87.879,10.239]
[1773253039504,10.233,87.931,87.852,20.485]
[1773253040694,10.233,87.931,87.886,10.238]
[1773253041301,10.233,87.931,87.878,10.239]
[1773253041604,10.234,87.924,87.833,21.10556622]
[1773253041798,14.32,87.948,87.83,6.03800135]
[1773253042004,2.84146457,87.947,87.83,6.03800135]
[1773253042203,2.84146457,87.946,87.83,6.03800135]
[1773253042403,14.32,87.948,87.83,6.03800135]
[1773253042404,6.03800135,87.94,87.83,6.03800135]
[1773253042606,2.84146457,87.939,87.83,6.03800135]
[1773253042800,2.84146457,87.938,87.83,6.03800135]
[1773253043106,14.32,87.937,87.83,6.03800135]
[1773253043302,14.32,87.942,87.83,6.03800135]
[1773253044404,10.234,87.926,87.869,10.24]
[1773253044900,6.03800135,87.94,87.838,21.10556622]
[1773253045100,6.03800135,87.94,87.867,10.241]
[1773253045101,10.236,87.912,87.867,10.241]
[1773253045304,10.236,87.912,87.833,21.10556622]
[1773253045505,2.84146457,87.938,87.83,27.14356757]
[1773253045803,10.235,87.913,87.83,27.14356757]
[1773253046006,14.32,87.937,87.824,21.10556622]
[1773253046200,10.237,87.897,87.85,10.243]
[1773253046403,6.03800135,87.92,87.814,21.10556622]
[1773253046598,6.03800135,87.92,87.815,21.10556622]
[1773253046797,6.03800135,87.92,87.795,20.499]
[1773253046798,6.03800135,87.92,87.807,21.10556622]
[1773253047000,14.32,87.919,87.815,21.10556622]
[1773253047201,14.32,87.919,87.81,6.03800135]
[1773253047407,14.32,87.919,87.809,21.10556622]
[1773253047602,14.32,87.919,87.81,6.03800135]
[1773253047897,6.03800135,87.93,87.81,6.03800135]
[1773253048107,10.237,87.895,87.845,10.243]
[1773253048803,6.03800135,87.93,87.852,10.242]
[1773253049004,14.32,87.921,87.852,10.242]
[1773253050498,10.236,87.904,87.852,10.242]
[1773253051202,10.238,87.894,87.844,10.243]
[1773253052402,14.32,87.921,87.835,10.244]
[1773253052803,14.32,87.921,87.797,21.10556622]
[1773253052999,14.32,87.921,87.795,20.499]
[1773253053000,6.03800135,87.91,87.795,20.499]
[1773253053199,169.66513775,87.948,87.777,21.10556622]
[1773253053200,6.03800135,87.89,87.777,21.10556622]
[1773253053406,14.32,87.889,87.77,6.03800135]
[1773253053605,17.16485391,87.889,87.77,6.03800135]
[1773253054109,14.32,87.889,87.77,6.03800135]
[1773253054499,10.242,87.855,87.801,10.248]
[1773253054706,2.84485391,87.888,87.77,6.03800135]
[1773253054916,17.16485391,87.889,87.77,6.03800135]
[1773253055107,14.32,87.889,87.77,6.03800135]
[1773253055511,10.243,87.848,87.79,10.25]
[1773253056206,10.242,87.857,87.77,6.03800135]
[1773253056402,2.84485391,87.888,87.77,6.03800135]
[1773253056708,6.03800135,87.89,87.801,10.248]
[1773253056910,14.34,87.889,87.801,10.248]
[1773253057101,10.242,87.859,87.77,6.03800135]
[1773253058009,10.243,87.852,87.77,6.03800135]
[1773253058211,6.03800135,87.87,87.77,6.03800135]
[1773253058411,6.03800135,87.87,87.758,14.32]
[1773253058412,14.34,87.869,87.758,14.32]
[1773253058711,10.243,87.844,87.791,10.25]
[1773253058912,10.243,87.844,87.77,6.03800135]
[1773253059212,14.34,87.871,87.77,6.03800135]
[1773253059510,10.241,87.862,87.805,10.248]
[1773253059710,2.41856135,87.87,87.805,10.248]
[1773253062418,10.242,87.857,87.805,10.248]
[1773253062912,2.41856135,87.86,87.797,10.249]
[1773253063117,10.243,87.85,87.797,10.249]
[1773253063417,2.41856135,87.85,87.786,10.25]
[1773253063619,10.244,87.837,87.786,10.25]
[1773253064015,12.66356135,87.83,87.783,10.251]
[1773253064317,10.245,87.83,87.783,10.251]
[1773253065814,10.244,87.838,87.783,10.251]
[1773253066015,2.41856135,87.84,87.783,10.251]
[1773253066818,10.245,87.831,87.783,10.251]
[1773253067418,2.41856135,87.86,87.79,2.41856135]
[1773253067621,2.41856135,87.85,87.79,2.41856135]
[1773253067821,2.41856135,87.85,87.78,2.41856135]
[1773253068019,2.41856135,87.84,87.78,2.41856135]
[1773253068322,2.41856135,87.84,87.77,2.41856135]
[1773253068514,10.247,87.817,87.772,10.252]
[1773253069120,10.247,87.817,87.76,2.41856135]
[1773253069520,10.247,87.817,87.77,10.252]
[1773253070320,2.41856135,87.81,87.762,10.253]
[1773253070523,2.41856135,87.82,87.762,10.253]
[1773253071027,2.41856135,87.83,87.76,2.41856135]
[1773253071415,2.41856135,87.82,87.75,2.41856135]
[1773253072415,10.247,87.812,87.762,10.253]
[1773253072821,10.247,87.814,87.77,2.41856135]
[1773253073123,11.15883571,87.814,87.76,12.67156135]
[1773253073324,2.41856135,87.82,87.76,12.67156135]
[1773253073719,2.41856135,87.82,87.729,20.514]
[1773253073720,2.42120065,87.82,87.751,10.254]
[1773253073920,2.42120065,87.81,87.74,2.42120065]